Cogmind - Beta 16 @@@ ROGUE MODE // 2025.12.06 @ 16:13:26 Player: Zonalar Result: Self-destructed Performance ------------- Evolutions (2) 1000 Regions Visited (4) 800 Robots Destroyed (1) 5 Value Destroyed (47) 47 Prototype IDs (4) 80 Alien Tech Used (0) 0 Bonus (0) 0 TOTAL SCORE: 1932 Bonus ------- None Cogmind --------- Core Integrity 550/550 Matter 250/300 Energy 77/100 System Corruption 0% Temperature Cool (0) Movement Hovering (260) Ox2 Location -8/Materials Parts ------- > --- POWER (1) -------- Backup Power I > --- PROPULSION (4) --- Advanced Treads Backup Propulsion I > --- UTILITY (4) ------ Medium Storage Unit Improved Terrain Scanner > --- WEAPON (2) ------- Backup Laser I Backup Laser I > --- INVENTORY (10) --- Light Treads Improved Aluminum Leg Scrap Suit Large Storage Unit Improved Targeting Computer Signal Generator Peak State ------------ > --- POWER ------------ Ion Engine > --- PROPULSION ------- Light Treads Aluminum Leg Carbon-fiber Leg > --- UTILITY ---------- Medium Storage Unit High-capacity Matter Pod Weight Redist. System > --- WEAPON ----------- (None) > --- INVENTORY -------- Light Treads Hover Unit Hover Unit Hover Unit Scrap Suit Large Storage Unit Improved Targeting Computer Signal Generator [Rating: 12] Favorites ----------- Power Ion Engine Engine Ion Engine Propulsion Aluminum Leg Treads Light Treads Leg Aluminum Leg Hover Unit Hover Unit Utility High-capacity Matter Pod Device Tractor Beam Storage High-capacity Matter Pod Weapon None Build | -11 -10 -10 -9 -8 ------- Run | Yrd Mat Min Mat Mat Slots Evolved 4 | . . . 2 2 Power . | . . . . . Propulsion 2 | . . . 1 1 Utility 2 | . . . 1 1 Weapon . | . . . . . Parts Attached 17 | 2 2 3 5 5 Power 1 | . . 1 . . Engine 1 | . . 1 . . Core . | . . . . . Reactor . | . . . . . Propulsion 10 | 2 . 2 2 4 Treads 3 | . . 2 . 1 Leg 4 | 2 . . 2 . Wheel . | . . . . . Hover 3 | . . . . 3 Flight . | . . . . . Utility 6 | . 2 . 3 1 Device 3 | . 1 . 1 1 Storage 3 | . 1 . 2 . Processor . | . . . . . Hackware . | . . . . . Protection . | . . . . . Artifact . | . . . . . Weapon . | . . . . . Energy Gun . | . . . . . Energy Cannon . | . . . . . Ballistic Gun . | . . . . . Ballistic Cannon . | . . . . . Launcher . | . . . . . Special Weapon . | . . . . . Impact Weapon . | . . . . . Slashing Weapon . | . . . . . Piercing Weapon . | . . . . . Special Melee Weapon . | . . . . . Unidentified Prototypes . | . . . . . Parts Lost 7 | . . 1 6 . Power 1 | . . . 1 . Propulsion 3 | . . . 3 . Utility 3 | . . 1 2 . Weapon . | . . . . . Highest Loss Streak 4 | . . 1 4 . To Critical Strikes . | . . . . . Average Backups 3 | 1 2 2 5 4 Power . | . . . . . Propulsion 2 | 1 2 2 2 1 Utility 1 | . . . 2 3 Weapon . | . . . . . Tool/Special . | . . . . . Unused Backups 2 | . . . . 2 Power . | . . . . . Propulsion . | . . . . . Utility 2 | . . . . 2 Weapon . | . . . . . Tool/Special . | . . . . . Average Slot Usage (%) 54 | . 47 55 64 46 Engine 3 | . . 3 7 . Treads 8 | . . 13 11 4 Leg 17 | . 28 15 16 4 Hover 2 | . . . . 23 Device 9 | . 12 9 8 4 Storage 13 | . 6 14 20 9 Peak Build Rating 12 | 2 4 5 12 11 Average Rating 5 | 1 3 4 9 9 On Entrance 3 | . 2 4 5 5 Avg Prop Armor Cover (%) 13 | . . . 13 13 Naked Turns . | . . . . . Heaviest Build 29 | . 5 9 29 11 Greatest Support 40 | 20 20 40 40 18 Greatest Overweight (x) . | . . . . . Average Overweight (x) . | . . . . . Largest Inventory Capacity 15 | 5 5 5 15 10 Average Capacity 6 | 5 5 5 10 10 Most Carried 10 | 4 3 5 10 8 Average Carried 4 | 1 2 4 7 6 Final Capacity 10 | 5 5 5 10 10 Final Carried 9 | 2 2 5 9 7 Class Distribution -------------------- 100% | Mutant Dominant Class ---------------- Mutant | -10/Materials Mutant | -10/Mines Mutant | -9/Materials Mutant | -8/Materials Resources | -11 -10 -10 -9 -8 ----------- Run | Yrd Mat Min Mat Mat Matter Collected 256 | 170 . 86 . . Remotely 86 | . . 86 . . Salvage Created . | . . . . . Parts . | . . . . . Haulers Intercepted . | . . . . . Recyclers Shooed . | . . . . . Parts Field Recycled . | . . . . . Retrieved Matter . | . . . . . Parts Self-Destructed . | . . . . . Prevented . | . . . . . Parts Restored . | . . . . . Kills | -11 -10 -10 -9 -8 ------- Run | Yrd Mat Min Mat Mat Combat Hostiles Destroyed 1 | . . 1 . . Melee 1 | . . 1 . . Classes Destroyed 1 | . . 1 . . Grunt 1 | . . 1 . . Best Kill Streak 1 | . . 1 . . Combat Bots Only 1 | . . 1 . . Max Kills in Single Turn 1 | . . 1 . . Gunslinging . | . . . . . Exploded . | . . . . . Melee 1 | . . 1 . . Uniques/NPCs Destroyed . | . . . . . Combat | -11 -10 -10 -9 -8 -------- Run | Yrd Mat Min Mat Mat Hostile Shots Fired 110 | . . 24 86 . Missed 36 | . . 5 31 . Hits 74 | . . 19 55 . Projectile 74 | . . 19 55 . Critical Strikes 3 | . . 1 2 . Damage Taken 986 | . . 276 710 . Core 332 | . . 105 227 . Absorbed by Shields . | . . . . . Core Remaining (%) 67 | 100 . 58 43 . Volleys Fired . | . . . . . Largest . | . . . . . Hottest . | . . . . . Shots Fired . | . . . . . Gun . | . . . . . Cannon . | . . . . . Launcher . | . . . . . Special . | . . . . . Kinetic . | . . . . . Thermal . | . . . . . Explosive . | . . . . . Electromagnetic . | . . . . . Robot Hit Streak . | . . . . . Robot Miss Streak . | . . . . . Penetration Max . | . . . . . Secondary Targets . | . . . . . Shots Hit Robots . | . . . . . Core Hits 7 | . . 6 1 . Critical Kills . | . . . . . Critical Parts Destroyed . | . . . . . Critical Strikes . | . . . . . Melee Attacks . | . . . . . Impact . | . . . . . Slashing . | . . . . . Piercing . | . . . . . Sneak Attacks . | . . . . . Combat Hostiles . | . . . . . Follow-up Attacks . | . . . . . Damage Inflicted 91 | . . 49 42 . Guns . | . . . . . Cannons . | . . . . . Explosions . | . . . . . Melee . | . . . . . Ramming 91 | . . 49 42 . Kinetic . | . . . . . Thermal . | . . . . . Explosive . | . . . . . Electromagnetic . | . . . . . Impact . | . . . . . Slashing . | . . . . . Piercing . | . . . . . Highest Corruption . | . . . . . Average Corruption . | . . . . . Corruption Purged . | . . . . . Corruption Blocked . | . . . . . Overload Shots . | . . . . . Overflow Damage . | . . . . . Projectiles . | . . . . . Explosions . | . . . . . Melee . | . . . . . Knockbacks 3 | . . 2 1 . Impact 3 | . . 2 1 . Kinetic . | . . . . . Secondary . | . . . . . Self-Inflicted Damage . | . . . . . Shots . | . . . . . Rammed 22 | . . 22 . . Targets Rammed 45 | . . 29 16 . Kicked 22 | . . 6 16 . Crushed 1 | . . 1 . . Highest Temperature 6 | . . 2 6 . Average Temperature 3 | . . 2 3 . Received Heat Transfer 510 | . . 177 333 . Siege Activations . | . . . . . Martial Activations . | . . . . . Shielding Activations . | . . . . . Robots Disrupted . | . . . . . Combat Hostiles . | . . . . . Robots Corrupted . | . . . . . Combat Hostiles . | . . . . . Parts Fried . | . . . . . Impact Corruptions . | . . . . . Robots Melted . | . . . . . Combat Hostiles . | . . . . . Parts Melted . | . . . . . Heat Transferred . | . . . . . Parts Sabotaged . | . . . . . Parts Stolen . | . . . . . Parts Stripped . | . . . . . Power Chain Reactions . | . . . . . Alert | -11 -10 -10 -9 -8 ------- Run | Yrd Mat Min Mat Mat Maximum Alert Level . | . . . . . Low Security (%) 100 | 100 100 100 100 100 Level 1 . | . . . . . Level 2 . | . . . . . Level 3 . | . . . . . Level 4 . | . . . . . Level 5 . | . . . . . High Security . | . . . . . Max Security . | . . . . . Peak Influence 30 | . 14 30 15 5 Initial . | . . . . . Average 1 | . 1 3 . . Influence Increases 70 | . 20 30 15 5 Destroy 0b10 Robot/C 20 | . . 20 . . Destroy Leader 10 | . . 10 . . Successful Hack 25 | . 20 . . 5 Lose Combat Pursuer 15 | . . . 15 . Influence Decreases 70 | . 20 30 15 5 Time Decay 60 | . 20 30 5 5 Lost Part 10 | . . . 10 . Squads Dispatched 2 | . . . 2 . Investigation 1 | . . . 1 . Extermination . | . . . . . Reinforcement 1 | . . . 1 . Assault . | . . . . . Garrison . | . . . . . Intercept . | . . . . . Searches Triggered . | . . . . . Construction Impeded . | . . . . . Haulers Reinforced . | . . . . . Active Scanning Responses . | . . . . . Cargo Convoy Interrupts . | . . . . . Stealth | -11 -10 -10 -9 -8 --------- Run | Yrd Mat Min Mat Mat Distress Signals 1 | . . . 1 . Communications Jammed . | . . . . . Distress Signals . | . . . . . Times Spotted 19 | . 2 4 13 . Peak Tracking Total 9 | . 2 2 9 . Tactical Retreats 1 | . . . 1 . Traps | -11 -10 -10 -9 -8 ------- Run | Yrd Mat Min Mat Mat Traps Triggered 1 | . . . 1 . Indirectly . | . . . . . Trap Hack Attempts . | . . . . . Triggered . | . . . . . Disarmed . | . . . . . Reprogrammed . | . . . . . Reused . | . . . . . Traps Extracted . | . . . . . Installed . | . . . . . Triggered . | . . . . . Machines | -11 -10 -10 -9 -8 ---------- Run | Yrd Mat Min Mat Mat Machines Disabled . | . . . . . Max in Single Turn . | . . . . . Machines Repaired . | . . . . . Machines Dismantled . | . . . . . Machines Sabotaged . | . . . . . Overloaded Fab Kills . | . . . . . Hacking | -11 -10 -10 -9 -8 --------- Run | Yrd Mat Min Mat Mat Machines Accessed 10 | . 5 . 3 2 Terminals 7 | . 5 . 1 1 Fabricators . | . . . . . Repair Stations 1 | . . . . 1 Recycling Units 1 | . . . 1 . Scanalyzers 1 | . . . 1 . Garrison Access . | . . . . . Total Hacks 25 | . 11 . 9 5 Successful 13 | . 3 . 7 3 Failed 12 | . 8 . 2 2 Catastrophic . | . . . . . Database Lockouts . | . . . . . Manual 11 | . 5 . 3 3 Terminals 18 | . 11 . 3 4 Fabricators . | . . . . . Repair Stations 1 | . . . . 1 Recycling Units 2 | . . . 2 . Scanalyzers 4 | . . . 4 . Garrison Access . | . . . . . Terminal Hacks 4 | . 2 . 1 1 Part Schematic 1 | . . . 1 . Prototype ID Bank 2 | . 1 . . 1 Registered Components 1 | . 1 . . . Fabricator Hacks . | . . . . . Repair Station Hacks 1 | . . . . 1 Refit 1 | . . . . 1 Recycling Unit Hacks 1 | . . . 1 . Retrieve Components 1 | . . . 1 . Scanalyzer 4 | . . . 4 . Retrieve Study 4 | . . . 4 . Garrison Access Hacks . | . . . . . Unauthorized Hacks 3 | . 1 . 1 1 Terminals 3 | . 1 . 1 1 Botnet 3 | . 1 . 1 1 Fabricators . | . . . . . Repair Stations . | . . . . . Recycling Units . | . . . . . Scanalyzers . | . . . . . Garrison Access . | . . . . . Data Cores Recovered . | . . . . . Used . | . . . . . Hacking Detections 7 | . 5 . 1 1 Full Trace Events . | . . . . . Feedback Events . | . . . . . Feedback Blocked . | . . . . . Robot Schematics Acquired . | . . . . . Robots Built . | . . . . . Authchips . | . . . . . Time . | . . . . . Total Robot Build Rating . | . . . . . Part Schematics Acquired 1 | . . . 1 . Parts Built . | . . . . . Authchips . | . . . . . Time . | . . . . . Total Part Build Rating . | . . . . . Part Studies Acquired 3 | . . . 3 . Parts Repaired . | . . . . . Time . | . . . . . Parts Recycled . | . . . . . Recycled Matter . | . . . . . Retrieved Matter . | . . . . . Retrieved Components 3 | . . . 3 . Parts Scanalyzed . | . . . . . Part Schematics Acquired . | . . . . . Parts Damaged . | . . . . . Bothacking | -11 -10 -10 -9 -8 ------------ Run | Yrd Mat Min Mat Mat Used RIF Installer . | . . . . . Robots Hacked . | . . . . . Non-combat . | . . . . . Combat . | . . . . . Robot Hacks Applied . | . . . . . Relay Couplers Released . | . . . . . Fabnet Peak Effective % . | . . . . . Robots Rewired . | . . . . . Allies Hacked . | . . . . . Hacks Repelled . | . . . . . Allies | -11 -10 -10 -9 -8 -------- Run | Yrd Mat Min Mat Mat Total Allies . | . . . . . Largest Group . | . . . . . Highest-Rated Group . | . . . . . Highest-Rated Ally . | . . . . . Total Orders . | . . . . . Ally Attacks . | . . . . . Total Damage . | . . . . . Kills . | . . . . . Allies Corrupted . | . . . . . Allies Melted . | . . . . . Intel | -11 -10 -10 -9 -8 ------- Run | Yrd Mat Min Mat Mat Active Infowar (turns) 13 | . . . . 13 Terrain 13 | . . . . 13 Robot Analysis Total . | . . . . . Derelict Logs Recovered . | . . . . . Drone Launches . | . . . . . Drone Recoveries . | . . . . . Exploration | -11 -10 -10 -9 -8 ------------- Run | Yrd Mat Min Mat Mat Turns Passed 780 | 32 204 266 206 72 Spaces Moved 513 | 30 163 154 129 37 Core 13 | 13 . . . . Treads 72 | . . 46 26 . Legs 391 | 17 163 108 103 . Wheels . | . . . . . Hover 37 | . . . . 37 Flight . | . . . . . Fastest Speed 50 | 50 120 120 112 62 Average Speed 118 | 89 120 131 124 65 Slowest Speed 160 | 120 120 160 160 72 Overloaded Moves . | . . . . . Propulsion Burnouts . | . . . . . Robots Hopped . | . . . . . Potential Cave-ins . | . . . . . Cave-ins Triggered . | . . . . . Exploration Rate (%) 23 | 3 41 49 20 3 Regions Visited 4 Branch Regions 1 Pre-discovered Areas . | . . . . . Known Exits Taken . | . . . . . Unknown Exits Taken 4 | 1 1 1 1 . Scrap Searched . | . . . . . Spaces Dug . | . . . . . Terrain Destroyed . | . . . . . Melee . | . . . . . Projectile . | . . . . . AOE . | . . . . . Terrain Rammed . | . . . . . Walls Destroyed . | . . . . . Machines Disabled . | . . . . . Actions | -11 -10 -10 -9 -8 --------- Run | Yrd Mat Min Mat Mat Total 663 | 35 171 201 171 85 Wait 69 | . 5 12 14 38 Move 509 | 29 162 153 128 37 Hop . | . . . . . Pick Up 18 | 4 2 3 7 2 Fast Attach 2 | . . 1 1 . Attach 11 | 2 2 . 3 4 Detach . | . . . . . Swap 5 | . . 2 2 1 Drop 4 | . . 1 . 3 Fire . | . . . . . Melee . | . . . . . Ram . | . . . . . Kick 22 | . . 6 16 . Crush 23 | . . 23 . . Escape Stasis . | . . . . . Rewire . | . . . . . Trap . | . . . . . Miscellaneous . | . . . . . Route ------- -11/Scrapyard -10/Materials -10/Mines -9/Materials -8/Materials History --------- Turn | Location | Event 8 | -11/Scrapyard | Discovered new exit (range 15) 33 | -11/Scrapyard | Entered Materials 144 | -10/Materials | Discovered new exit (range 14) 237 | -10/Materials | Entered Mines 238 | -10/Mines | Met a Derelict testing a Signal Generator 240 | -10/Mines | Found Signal Generator 304 | -10/Mines | Build established: Mutant 355 | -10/Mines | Found a Scrap Suit stashed away for nefarious purposes 357 | -10/Mines | Found Scrap Suit 482 | -10/Mines | Discovered new exit (range 6) 503 | -10/Mines | Entered Materials 503 | -9/Materials | Evolved 2 slots: Propulsion x1, Utility x1 666 | -9/Materials | Discovered new exit (range 16) 705 | -9/Materials | Core integrity fell below 50% 709 | -9/Materials | Entered another Materials area 709 | -8/Materials | Evolved 2 slots: Propulsion x1, Utility x1 739 | -8/Materials | Lost 4 parts (2n2u) 781 | -8/Materials | Self-destructed Last Messages --------------- 00744_ Connecting with Terminal... 00744_ Current location identified: Materials >>Trojan(Botnet) Trojan loaded successfully. Testing... Terminal linked with 0 systems. Awaiting botnet instructions. >>Prototypes Downloading prototype IDs... Imp. Cesium-ion Thruster Cld. Airjet 00747_ Connecting with Terminal... 00779_ Dropped Hover Unit. 00781_ Connecting with Repair Station... >>Refit Scanning configuration... Attaching: Backup Power I x1 Backup Propulsion I x1 Backup Laser I x2 Map ----- +----------------------------------------------------+ | ????????????????????????????????????? | | ????????????????????????????????????? | | ????????????????????????????????????? | | ????????????????????????????????????? | | ????????????????????????????????????? | | ????????????????????????????????????? | | ????????????????????????????????????? | | ????????????????????????????????????? | | ????????????????????????????????????? | | ????????????????????????????????????? | | ????????????????????????????????????? | | ????????????????????????????????????? | | ????????????????????????????????????? | | ????????????????????????????????????? | | ????????????????????????????????????? | | ????????????????????????????????????? | | ????????????????????????????????????? | | ????????????????????????????????????? | | ????????????????????????????????????? | | ????????????????????????????????????? | | ????????????????????????????????????? | | ??????????????????????########??????? | | ??????????????????????# #??????? | | ??????????????????????# #??????? | | ???????????????#??????#!=""" #??????? | | ??????????????????????# =@R" #??????? | | ??????????????????????# """ #??????? | | ??????????????????????# #??????? | | ??????????? ##########+####?????? | | ??????????? #?????? | | ??????????? #?????? | | ??????????? #?????? | | ??????????? ##########+######???? | | ?????????????????????????# ! #???? | | ????????????? ??#????????# #???? | | ???????????? ????????????# #???? | | ?????????????????????????# #???? | | ?????????????????????????# "T" #???? | | ?????????????????????????# """ ]#???? | | ???????????????#?????????########???? | | ????????????????????????????????????? | | ????????????????????????????????????? | | ????????????????????????????????????? | | ????????????????????????????????????? | | ????????????????????????????????????? | | ??????????????????????????????#?????? | | ????????????????????????????????????? | | ????????????????????????????????????? | | ????????????????????????????????????? | | ????????????????????????????????????? | +----------------------------------------------------+ Best States ------------- Heat Dissipation 31 Energy Generation 12 Energy Capacity 250 Matter Stores 401 Matter Capacity 500 Sight Range 16 Terrain Scan Range 16 Terrain Scan Density 10 Additional Mass Support 6 Evasion (%) 55 Recoil Reduction 2 Item Schematics ----------------- Hammer | -9/Materials | Hacked Robot Schematics ------------------ None Fabricated ------------ Nothing Repaired ---------- Nothing Studied --------- Aluminum Leg | -9/Materials | Hacked Lgt. Treads | -9/Materials | Hacked Ion Engine | -9/Materials | Hacked Alien Tech Used ----------------- None Achievements -------------- None Challenges ------------ None Game ------ Seed PortableLaserDeconstructor Manual? 0 Play Time 00:22:09 Cumulative 63.2 hours Start 2025.12.06 @ 15:44:49 End 2025.12.06 @ 16:13:26 Sessions 1 Manual Loads 0 Difficulty Rogue Special Mode None Game No. 34 Rogue 34 Adventurer 0 Explorer 0 Win Type - Total 0 Types 0/0/0/0/0/0/0/0/0/0 Lore% 19 Gallery% 36 Achievement% 24 Wizard Run 0 Options --------- Layout 0 ASCII 0 Keyboard 0 Movement Mouse Keybinds 1 Fullscreen 2 Font 24/Smallcaps Map View 76x50 Zoom Use 0% Tactical HUD 1 Map Filters NONE Filters NONE Steam 1 RUN: 5e81aa97-cc60-4f8a-a78e-d4c04362abd3